[Event "Early-Titled-Tuesday-Blitz-September-12-2023"]
[Site "Chess.com"]
[Date "2023.09.12"]
[Round "1"]
[White "chessfatbear"]
[Black "Chessbard1972"]
[Result "1-0"]
[WhiteElo "2845"]
[BlackElo "2476"]
[TimeControl "180+1"]
[EndTime "8:06:54 PDT"]
[Termination "chessfatbear won by checkmate"]

1. Nf3 {[%clk 0:03:00.9]} 1... Nf6 {[%clk 0:02:53.4]} 2. g3 {[%clk 0:03:01.8]}
2... g6 {[%clk 0:02:52.9]} 3. Bg2 {[%clk 0:03:00.8]} 3... Bg7 {[%clk 0:02:52.6]}
4. O-O {[%clk 0:03:01.7]} 4... O-O {[%clk 0:02:51.9]} 5. c4 {[%clk 0:03:02.2]}
5... d6 {[%clk 0:02:49.6]} 6. Nc3 {[%clk 0:03:01.9]} 6... e5 {[%clk 0:02:46.7]}
7. d3 {[%clk 0:03:02.8]} 7... Nc6 {[%clk 0:02:28.2]} 8. Rb1 {[%clk 0:03:00.6]}
8... Nh5 {[%clk 0:02:27.1]} 9. b4 {[%clk 0:02:53.4]} 9... f5 {[%clk 0:02:26.3]}
10. Nd2 {[%clk 0:02:43.9]} 10... f4 {[%clk 0:02:18.7]} 11. b5 {[%clk 0:02:38.3]}
11... Ne7 {[%clk 0:02:07.1]} 12. Ba3 {[%clk 0:02:38.6]} 12... a6 {[%clk
0:01:55.1]} 13. c5 {[%clk 0:02:27.1]} 13... axb5 {[%clk 0:01:40.1]} 14. Qb3+
{[%clk 0:02:26]} 14... Kh8 {[%clk 0:01:37.8]} 15. cxd6 {[%clk 0:02:25.9]} 15...
cxd6 {[%clk 0:01:37]} 16. Nxb5 {[%clk 0:02:26.1]} 16... d5 {[%clk 0:01:25.1]}
17. Bxe7 {[%clk 0:02:03]} 17... Qxe7 {[%clk 0:01:22.9]} 18. Qxd5 {[%clk
0:02:03.9]} 18... Be6 {[%clk 0:01:17.3]} 19. Qxb7 {[%clk 0:01:55.7]} 19... Qxb7
{[%clk 0:01:16.6]} 20. Bxb7 {[%clk 0:01:56.6]} 20... Rxa2 {[%clk 0:01:17]} 21.
Rfd1 {[%clk 0:01:52.2]} 21... fxg3 {[%clk 0:01:14.4]} 22. hxg3 {[%clk
0:01:50.9]} 22... Bh6 {[%clk 0:01:09.9]} 23. Nf3 {[%clk 0:01:03.5]} 23... Rxe2
{[%clk 0:01:05.7]} 24. Re1 {[%clk 0:01:03.4]} 24... Rxe1+ {[%clk 0:00:56]} 25.
Rxe1 {[%clk 0:01:04.3]} 25... Rb8 {[%clk 0:00:21.4]} 26. Bc6 {[%clk 0:00:59.9]}
26... Bg7 {[%clk 0:00:19.7]} 27. Nxe5 {[%clk 0:00:57.9]} 27... Bxe5 {[%clk
0:00:19.7]} 28. Rxe5 {[%clk 0:00:58.8]} 28... Bf5 {[%clk 0:00:20]} 29. d4 {[%clk
0:00:58.2]} 29... Nf6 {[%clk 0:00:20]} 30. d5 {[%clk 0:00:55.1]} 30... Be4
{[%clk 0:00:19.9]} 31. Nc3 {[%clk 0:00:41.6]} 31... Bf3 {[%clk 0:00:19.7]} 32.
Re3 {[%clk 0:00:42.2]} 32... Bg4 {[%clk 0:00:16.6]} 33. Kg2 {[%clk 0:00:41.6]}
33... Bd7 {[%clk 0:00:14.7]} 34. Bxd7 {[%clk 0:00:38.1]} 34... Nxd7 {[%clk
0:00:14.4]} 35. Re7 {[%clk 0:00:38.9]} 35... Rd8 {[%clk 0:00:14.5]} 36. Ne4
{[%clk 0:00:37.9]} 36... Nb6 {[%clk 0:00:14.1]} 37. Nf6 {[%clk 0:00:38]} 37...
Nxd5 {[%clk 0:00:11.3]} 38. Rxh7# {[%clk 0:00:36.3]} 1-0

[Event "Early-Titled-Tuesday-Blitz-September-12-2023"]
[Site "Chess.com"]
[Date "2023.09.12"]
[Round "1"]
[White "FairChess_on_YouTube"]
[Black "GKARU"]
[Result "1-0"]
[WhiteElo "3037"]
[BlackElo "2526"]
[TimeControl "180+1"]
[EndTime "8:06:56 PDT"]
[Termination "FairChess_on_YouTube won on time"]

1. d4 {[%clk 0:03:00.9]} 1... d5 {[%clk 0:02:38.9]} 2. c4 {[%clk 0:02:58.9]}
2... dxc4 {[%clk 0:02:32.4]} 3. e3 {[%clk 0:02:55.8]} 3... Nf6 {[%clk 0:02:32]}
4. Bxc4 {[%clk 0:02:55.9]} 4... e6 {[%clk 0:02:32.9]} 5. Nf3 {[%clk 0:02:56.3]}
5... a6 {[%clk 0:02:33.8]} 6. O-O {[%clk 0:02:54.1]} 6... c5 {[%clk 0:02:33]} 7.
dxc5 {[%clk 0:02:47.8]} 7... Qxd1 {[%clk 0:02:32.2]} 8. Rxd1 {[%clk 0:02:47.9]}
8... Bxc5 {[%clk 0:02:33.1]} 9. Be2 {[%clk 0:02:43.9]} 9... Ke7 {[%clk 0:02:34]}
10. Nc3 {[%clk 0:02:28.2]} 10... b5 {[%clk 0:02:15.5]} 11. Nd2 {[%clk 0:02:26]}
11... Bb7 {[%clk 0:02:12.9]} 12. Nb3 {[%clk 0:02:25.9]} 12... Bb6 {[%clk
0:02:07]} 13. a4 {[%clk 0:02:25.5]} 13... b4 {[%clk 0:02:06.8]} 14. a5 {[%clk
0:02:25.5]} 14... Ba7 {[%clk 0:01:08.1]} 15. Na4 {[%clk 0:02:16.2]} 15... Nbd7
{[%clk 0:01:06.9]} 16. Bd2 {[%clk 0:02:14.6]} 16... Rhc8 {[%clk 0:00:56.8]} 17.
Bxb4+ {[%clk 0:02:14.6]} 17... Ke8 {[%clk 0:00:57.5]} 18. Rac1 {[%clk
0:02:03.3]} 18... Nd5 {[%clk 0:00:56.6]} 19. Ba3 {[%clk 0:01:41.2]} 19... Rab8
{[%clk 0:00:41.6]} 20. Bd6 {[%clk 0:01:32.5]} 20... Ra8 {[%clk 0:00:40]} 21.
Nac5 {[%clk 0:01:27.5]} 21... Nxc5 {[%clk 0:00:37.7]} 22. Nxc5 {[%clk 0:01:24]}
22... Bxc5 {[%clk 0:00:32.9]} 23. Bxc5 {[%clk 0:01:24.9]} 23... Rc6 {[%clk
0:00:17.9]} 24. e4 {[%clk 0:01:05.7]} 24... Nf4 {[%clk 0:00:15.8]} 25. Bf1
{[%clk 0:01:05.9]} 25... Rac8 {[%clk 0:00:15.6]} 26. b4 {[%clk 0:00:58.9]} 26...
e5 {[%clk 0:00:14.2]} 27. Rb1 {[%clk 0:00:55.6]} 27... Ne6 {[%clk 0:00:13.2]}
28. Bd6 {[%clk 0:00:52.3]} 28... f6 {[%clk 0:00:12.5]} 29. b5 {[%clk 0:00:52.9]}
29... Rc2 {[%clk 0:00:05.2]} 30. Bd3 {[%clk 0:00:47.1]} 30... R2c3 {[%clk
0:00:04.5]} 31. bxa6 {[%clk 0:00:46.2]} 31... Ba8 {[%clk 0:00:04.2]} 32. a7
{[%clk 0:00:36]} 32... Nf4 {[%clk 0:00:04.6]} 33. Ba6 {[%clk 0:00:34.7]} 33...
Rd8 {[%clk 0:00:02.8]} 34. Rb8 {[%clk 0:00:34]} 1-0

[Event "Early-Titled-Tuesday-Blitz-September-12-2023"]
[Site "Chess.com"]
[Date "2023.09.12"]
[Round "1"]
[White "ChessQueen"]
[Black "MAGMAchess02"]
[Result "0-1"]
[WhiteElo "2734"]
[BlackElo "2442"]
[TimeControl "180+1"]
[EndTime "8:06:56 PDT"]
[Termination "MAGMAchess02 won by resignation"]

1. c4 {[%clk 0:03:00.5]} 1... c5 {[%clk 0:02:58]} 2. Nf3 {[%clk 0:02:59.7]} 2...
Nf6 {[%clk 0:02:57.6]} 3. g3 {[%clk 0:02:59.3]} 3... Nc6 {[%clk 0:02:57.5]} 4.
Bg2 {[%clk 0:02:59.2]} 4... g6 {[%clk 0:02:57.8]} 5. O-O {[%clk 0:02:56.6]} 5...
Bg7 {[%clk 0:02:57.4]} 6. d4 {[%clk 0:02:55.6]} 6... cxd4 {[%clk 0:02:57.4]} 7.
Nxd4 {[%clk 0:02:56.5]} 7... O-O {[%clk 0:02:57.1]} 8. Nc2 {[%clk 0:02:52.6]}
8... d6 {[%clk 0:02:54.7]} 9. Nc3 {[%clk 0:02:50.6]} 9... Be6 {[%clk 0:02:50]}
10. b3 {[%clk 0:02:46.6]} 10... Rc8 {[%clk 0:02:49.3]} 11. Bb2 {[%clk
0:02:45.5]} 11... a6 {[%clk 0:02:42]} 12. Ne3 {[%clk 0:02:38.7]} 12... Qd7
{[%clk 0:02:41.9]} 13. Rc1 {[%clk 0:02:37.9]} 13... Bh3 {[%clk 0:02:41.3]} 14.
Ncd5 {[%clk 0:02:15.3]} 14... Bxg2 {[%clk 0:02:34]} 15. Nxg2 {[%clk 0:02:11.2]}
15... Nxd5 {[%clk 0:02:31.7]} 16. Bxg7 {[%clk 0:02:11.3]} 16... Kxg7 {[%clk
0:02:31.4]} 17. Qxd5 {[%clk 0:02:11.6]} 17... Rfd8 {[%clk 0:01:51.2]} 18. Rfd1
{[%clk 0:02:09.6]} 18... e6 {[%clk 0:01:39.5]} 19. Qd2 {[%clk 0:02:06.7]} 19...
Qe7 {[%clk 0:01:39.8]} 20. h4 {[%clk 0:02:03.1]} 20... d5 {[%clk 0:01:38.3]} 21.
Qb2+ {[%clk 0:01:58.7]} 21... d4 {[%clk 0:01:32.2]} 22. h5 {[%clk 0:01:55]}
22... e5 {[%clk 0:01:31.6]} 23. a3 {[%clk 0:01:43.9]} 23... Qg5 {[%clk
0:01:23.2]} 24. hxg6 {[%clk 0:01:26.6]} 24... hxg6 {[%clk 0:01:24.1]} 25. Qc2
{[%clk 0:01:15.6]} 25... f5 {[%clk 0:00:55.1]} 26. e3 {[%clk 0:00:51.3]} 26...
dxe3 {[%clk 0:00:52.2]} 27. Nxe3 {[%clk 0:00:33.3]} 27... Nd4 {[%clk 0:00:51.6]}
28. Qb2 {[%clk 0:00:33.7]} 28... Nf3+ {[%clk 0:00:29.2]} 29. Kg2 {[%clk
0:00:33.4]} 29... Nd4 {[%clk 0:00:20.7]} 30. Rh1 {[%clk 0:00:31.2]} 30... Rh8
{[%clk 0:00:19.4]} 31. Nd5 {[%clk 0:00:27.9]} 31... Qg4 {[%clk 0:00:17.4]} 32.
Qc3 {[%clk 0:00:24.4]} 32... Qe4+ {[%clk 0:00:16.8]} 33. f3 {[%clk 0:00:18]}
33... Qe2+ {[%clk 0:00:16.7]} 34. Kg1 {[%clk 0:00:18.4]} 34... Nxf3+ {[%clk
0:00:14.9]} 35. Qxf3 {[%clk 0:00:17.4]} 35... Qxf3 {[%clk 0:00:15.1]} 0-1

[Event "Early-Titled-Tuesday-Blitz-September-12-2023"]
[Site "Chess.com"]
[Date "2023.09.12"]
[Round "1"]
[White "lachesisQ"]
[Black "GM4life"]
[Result "1-0"]
[WhiteElo "3067"]
[BlackElo "2533"]
[TimeControl "180+1"]
[EndTime "8:06:57 PDT"]
[Termination "lachesisQ won on time"]

1. e4 {[%clk 0:02:57.7]} 1... c5 {[%clk 0:02:58.6]} 2. Nf3 {[%clk 0:02:57.5]}
2... d6 {[%clk 0:02:59]} 3. d4 {[%clk 0:02:57.6]} 3... cxd4 {[%clk 0:02:59.9]}
4. Nxd4 {[%clk 0:02:58.3]} 4... Nf6 {[%clk 0:03:00.6]} 5. Nc3 {[%clk 0:02:58.6]}
5... a6 {[%clk 0:03:01.2]} 6. Be2 {[%clk 0:02:58.5]} 6... e5 {[%clk 0:03:01.5]}
7. Nb3 {[%clk 0:02:58.6]} 7... Be7 {[%clk 0:03:02.2]} 8. O-O {[%clk 0:02:58.8]}
8... O-O {[%clk 0:03:02.8]} 9. Be3 {[%clk 0:02:59.2]} 9... Be6 {[%clk
0:03:02.9]} 10. Re1 {[%clk 0:02:59.6]} 10... Nbd7 {[%clk 0:03:01.5]} 11. a4
{[%clk 0:02:59.1]} 11... Rc8 {[%clk 0:03:00.5]} 12. a5 {[%clk 0:02:58.7]} 12...
Rxc3 {[%clk 0:02:49.6]} 13. bxc3 {[%clk 0:02:59.6]} 13... Nxe4 {[%clk 0:02:50]}
14. Qd3 {[%clk 0:02:56.5]} 14... f5 {[%clk 0:02:48.5]} 15. c4 {[%clk 0:02:46]}
15... Qe8 {[%clk 0:02:26.2]} 16. Nd2 {[%clk 0:02:39.6]} 16... Ndc5 {[%clk
0:02:21.6]} 17. Bxc5 {[%clk 0:02:23.4]} 17... Nxc5 {[%clk 0:02:22.5]} 18. Qa3
{[%clk 0:02:23.6]} 18... Qc6 {[%clk 0:02:18.3]} 19. Rab1 {[%clk 0:02:22.3]}
19... d5 {[%clk 0:02:14.6]} 20. cxd5 {[%clk 0:02:16.3]} 20... Bxd5 {[%clk
0:02:14.8]} 21. Bc4 {[%clk 0:02:16.6]} 21... e4 {[%clk 0:01:56.3]} 22. Qa2
{[%clk 0:01:57.7]} 22... Bxc4 {[%clk 0:01:53.1]} 23. Qxc4+ {[%clk 0:01:58.6]}
23... Kh8 {[%clk 0:01:51.8]} 24. Nb3 {[%clk 0:01:58.3]} 24... Rc8 {[%clk
0:00:51.3]} 25. Red1 {[%clk 0:01:54.8]} 25... f4 {[%clk 0:00:41]} 26. Qf7 {[%clk
0:01:51]} 26... Bf6 {[%clk 0:00:34.5]} 27. Nd4 {[%clk 0:01:38.9]} 27... Qa4
{[%clk 0:00:19.8]} 28. Ne6 {[%clk 0:01:32.6]} 28... Nxe6 {[%clk 0:00:18.9]} 29.
Qxe6 {[%clk 0:01:29.5]} 29... Qxc2 {[%clk 0:00:19.3]} 30. h3 {[%clk 0:01:26.7]}
30... h6 {[%clk 0:00:14.6]} 31. Re1 {[%clk 0:01:24.5]} 31... e3 {[%clk
0:00:13.9]} 32. fxe3 {[%clk 0:01:24.1]} 32... Bh4 {[%clk 0:00:13.7]} 33. Rf1
{[%clk 0:01:11.1]} 33... Bf2+ {[%clk 0:00:13.7]} 34. Rxf2 {[%clk 0:00:51.7]}
34... Qxb1+ {[%clk 0:00:13.2]} 35. Kh2 {[%clk 0:00:52.3]} 35... Rd8 {[%clk
0:00:06.8]} 36. Rxf4 {[%clk 0:00:50.4]} 36... Qb5 {[%clk 0:00:06.7]} 37. Rf5
{[%clk 0:00:45.7]} 37... Qd7 {[%clk 0:00:04]} 38. Rf8+ {[%clk 0:00:40.2]} 38...
Kh7 {[%clk 0:00:03.9]} 39. Qg8+ {[%clk 0:00:39.4]} 39... Kg6 {[%clk 0:00:03]}
40. Rxd8 {[%clk 0:00:39.7]} 40... Qc7+ {[%clk 0:00:01.1]} 41. Kg1 {[%clk
0:00:40]} 1-0

[Event "Early-Titled-Tuesday-Blitz-September-12-2023"]
[Site "Chess.com"]
[Date "2023.09.12"]
[Round "1"]
[White "WelshTiger"]
[Black "scarabee43"]
[Result "0-1"]
[WhiteElo "2456"]
[BlackElo "2793"]
[TimeControl "180+1"]
[EndTime "8:06:57 PDT"]
[Termination "scarabee43 won by resignation"]

1. e4 {[%clk 0:03:00.9]} 1... c5 {[%clk 0:02:59.8]} 2. Nf3 {[%clk 0:03:00.7]}
2... e6 {[%clk 0:03:00.3]} 3. b3 {[%clk 0:02:57]} 3... Nc6 {[%clk 0:02:59.6]} 4.
Bb2 {[%clk 0:02:56.8]} 4... Qc7 {[%clk 0:02:57.6]} 5. Bb5 {[%clk 0:02:55.5]}
5... a6 {[%clk 0:02:55.4]} 6. Bxc6 {[%clk 0:02:55.6]} 6... Qxc6 {[%clk 0:02:56]}
7. Nc3 {[%clk 0:02:49.7]} 7... d6 {[%clk 0:02:55.4]} 8. O-O {[%clk 0:02:48.5]}
8... Nf6 {[%clk 0:02:55.2]} 9. Re1 {[%clk 0:02:44.6]} 9... e5 {[%clk 0:02:50.4]}
10. d3 {[%clk 0:02:38.6]} 10... Be7 {[%clk 0:02:47.9]} 11. Ne2 {[%clk
0:02:38.6]} 11... O-O {[%clk 0:02:46.9]} 12. Ng3 {[%clk 0:02:38.4]} 12... g6
{[%clk 0:02:40.5]} 13. h3 {[%clk 0:02:34.4]} 13... b5 {[%clk 0:02:38.2]} 14. c3
{[%clk 0:02:34.8]} 14... Ne8 {[%clk 0:02:13.5]} 15. d4 {[%clk 0:02:35.3]} 15...
f6 {[%clk 0:02:14.1]} 16. Nf1 {[%clk 0:02:27.1]} 16... Bb7 {[%clk 0:02:12.2]}
17. Qd2 {[%clk 0:02:12]} 17... Ng7 {[%clk 0:02:05.1]} 18. Rad1 {[%clk
0:02:11.2]} 18... Rfd8 {[%clk 0:02:01.1]} 19. d5 {[%clk 0:02:00.7]} 19... Qd7
{[%clk 0:01:59.7]} 20. c4 {[%clk 0:02:01.6]} 20... Nh5 {[%clk 0:01:55.5]} 21.
Ne3 {[%clk 0:01:51.3]} 21... Nf4 {[%clk 0:01:53.8]} 22. Kh2 {[%clk 0:01:36.5]}
22... Kg7 {[%clk 0:01:27.2]} 23. Ng1 {[%clk 0:01:36.7]} 23... bxc4 {[%clk
0:01:24.1]} 24. Nxc4 {[%clk 0:01:34.7]} 24... Qb5 {[%clk 0:01:20.9]} 25. Bc3
{[%clk 0:01:29.6]} 25... Rd7 {[%clk 0:01:13]} 26. g3 {[%clk 0:01:27.7]} 26...
Nh5 {[%clk 0:01:12.6]} 27. f4 {[%clk 0:01:15.8]} 27... Kg8 {[%clk 0:01:08.5]}
28. Rf1 {[%clk 0:00:57.4]} 28... Bf8 {[%clk 0:01:00.8]} 29. Ba5 {[%clk
0:00:56.1]} 29... Rg7 {[%clk 0:00:50.1]} 30. f5 {[%clk 0:00:53.8]} 30... gxf5
{[%clk 0:00:48.5]} 31. Rxf5 {[%clk 0:00:51.5]} 31... Nxg3 {[%clk 0:00:48.7]} 32.
Rf3 {[%clk 0:00:24.7]} 32... Nxe4 {[%clk 0:00:48.7]} 33. Qe3 {[%clk 0:00:25]}
33... Ng5 {[%clk 0:00:34.8]} 34. Rxf6 {[%clk 0:00:24.9]} 34... Be7 {[%clk
0:00:32.8]} 35. Rf5 {[%clk 0:00:24.6]} 35... Qd7 {[%clk 0:00:32.1]} 36. Rff1
{[%clk 0:00:16.3]} 36... Rf8 {[%clk 0:00:31.6]} 37. Rxf8+ {[%clk 0:00:16.4]}
37... Bxf8 {[%clk 0:00:32.3]} 38. Nf3 {[%clk 0:00:14.8]} 38... Qxh3+ {[%clk
0:00:31.5]} 39. Kg1 {[%clk 0:00:13.8]} 39... Ne4+ {[%clk 0:00:30.8]} 0-1

[Event "Early-Titled-Tuesday-Blitz-September-12-2023"]
[Site "Chess.com"]
[Date "2023.09.12"]
[Round "1"]
[White "Willychess95"]
[Black "vladoboch"]
[Result "0-1"]
[WhiteElo "2701"]
[BlackElo "2421"]
[TimeControl "180+1"]
[EndTime "8:06:57 PDT"]
[Termination "vladoboch won by resignation"]

1. e4 {[%clk 0:03:00.9]} 1... c5 {[%clk 0:02:50.6]} 2. Nf3 {[%clk 0:02:59.8]}
2... Nc6 {[%clk 0:02:47.6]} 3. d4 {[%clk 0:02:58.1]} 3... cxd4 {[%clk
0:02:48.5]} 4. Nxd4 {[%clk 0:02:58.6]} 4... Nf6 {[%clk 0:02:49]} 5. Nc3 {[%clk
0:02:57.1]} 5... e5 {[%clk 0:02:49.4]} 6. Ndb5 {[%clk 0:02:56.9]} 6... d6 {[%clk
0:02:49.7]} 7. Bg5 {[%clk 0:02:56.4]} 7... a6 {[%clk 0:02:49.9]} 8. Na3 {[%clk
0:02:56.2]} 8... b5 {[%clk 0:02:50.3]} 9. Nd5 {[%clk 0:02:56.5]} 9... Be7 {[%clk
0:02:51]} 10. Bxf6 {[%clk 0:02:56.4]} 10... Bxf6 {[%clk 0:02:51.9]} 11. c4
{[%clk 0:02:56.8]} 11... b4 {[%clk 0:02:51.7]} 12. Nc2 {[%clk 0:02:56.8]} 12...
a5 {[%clk 0:02:52.6]} 13. g3 {[%clk 0:02:56.7]} 13... O-O {[%clk 0:02:46.5]} 14.
Bg2 {[%clk 0:02:55.9]} 14... Bg5 {[%clk 0:02:46.9]} 15. O-O {[%clk 0:02:55.7]}
15... Rb8 {[%clk 0:02:35.4]} 16. b3 {[%clk 0:02:55]} 16... Kh8 {[%clk
0:02:34.1]} 17. Qd3 {[%clk 0:02:53.9]} 17... g6 {[%clk 0:02:33.2]} 18. Rad1
{[%clk 0:02:49.6]} 18... f5 {[%clk 0:02:17.8]} 19. f4 {[%clk 0:02:48.1]} 19...
Bh6 {[%clk 0:02:15.5]} 20. Nde3 {[%clk 0:02:41.9]} 20... exf4 {[%clk 0:02:11]}
21. gxf4 {[%clk 0:02:41]} 21... fxe4 {[%clk 0:01:49]} 22. Bxe4 {[%clk
0:02:39.1]} 22... Ne7 {[%clk 0:01:16.2]} 23. f5 {[%clk 0:01:58.4]} 23... gxf5
{[%clk 0:01:08.7]} 24. Bg2 {[%clk 0:01:53]} 24... f4 {[%clk 0:01:05.3]} 25. Nd5
{[%clk 0:01:52.3]} 25... Bf5 {[%clk 0:01:01.9]} 26. Qe2 {[%clk 0:01:45]} 26...
Nxd5 {[%clk 0:01:00.9]} 27. Bxd5 {[%clk 0:01:45.9]} 27... Qg5+ {[%clk
0:00:55.6]} 28. Kh1 {[%clk 0:01:44.7]} 28... Rbe8 {[%clk 0:00:53.6]} 29. Qf2
{[%clk 0:01:41.6]} 29... Bg7 {[%clk 0:00:23.9]} 30. Rg1 {[%clk 0:01:32.9]} 30...
Qh6 {[%clk 0:00:24.1]} 31. Nd4 {[%clk 0:01:30.2]} 31... Be4+ {[%clk 0:00:20.6]}
32. Bxe4 {[%clk 0:01:27.4]} 32... Rxe4 {[%clk 0:00:21.5]} 33. Nb5 {[%clk
0:01:16.1]} 33... Be5 {[%clk 0:00:18.5]} 34. Qc2 {[%clk 0:00:30.9]} 34... f3
{[%clk 0:00:16.5]} 35. Nxd6 {[%clk 0:00:30.4]} 35... Re2 {[%clk 0:00:14.8]} 36.
Nf7+ {[%clk 0:00:26.3]} 36... Rxf7 {[%clk 0:00:15.3]} 37. Rd8+ {[%clk
0:00:16.8]} 37... Rf8 {[%clk 0:00:15.7]} 0-1

[Event "Early-Titled-Tuesday-Blitz-September-12-2023"]
[Site "Chess.com"]
[Date "2023.09.12"]
[Round "1"]
[White "MusicCityMaster"]
[Black "Rutricks"]
[Result "0-1"]
[WhiteElo "2378"]
[BlackElo "2676"]
[TimeControl "180+1"]
[EndTime "8:06:57 PDT"]
[Termination "Rutricks won by resignation"]

1. e4 {[%clk 0:03:00.9]} 1... g6 {[%clk 0:03:00.9]} 2. d4 {[%clk 0:03:00.5]}
2... Bg7 {[%clk 0:03:01.6]} 3. h4 {[%clk 0:02:59.7]} 3... d5 {[%clk 0:03:00.9]}
4. e5 {[%clk 0:02:57.5]} 4... c5 {[%clk 0:03:00.6]} 5. c3 {[%clk 0:02:56.1]}
5... Nc6 {[%clk 0:02:50.6]} 6. h5 {[%clk 0:02:46.8]} 6... cxd4 {[%clk
0:02:48.9]} 7. cxd4 {[%clk 0:02:46.5]} 7... Nh6 {[%clk 0:02:41.3]} 8. hxg6
{[%clk 0:02:44.8]} 8... hxg6 {[%clk 0:02:41.4]} 9. Nc3 {[%clk 0:02:40.4]} 9...
Bg4 {[%clk 0:02:28.3]} 10. Be2 {[%clk 0:02:28.7]} 10... Bxe2 {[%clk 0:02:27.7]}
11. Ngxe2 {[%clk 0:02:29.6]} 11... Nf5 {[%clk 0:02:25.2]} 12. Rxh8+ {[%clk
0:02:29.7]} 12... Bxh8 {[%clk 0:02:26.1]} 13. g4 {[%clk 0:02:18.8]} 13... Nh4
{[%clk 0:02:06.8]} 14. Qd3 {[%clk 0:02:16.3]} 14... f6 {[%clk 0:01:25.1]} 15.
Nf4 {[%clk 0:01:50.8]} 15... fxe5 {[%clk 0:01:18.8]} 16. dxe5 {[%clk 0:01:26.1]}
16... Nxe5 {[%clk 0:01:16.1]} 17. Qb5+ {[%clk 0:01:17.7]} 17... Nc6 {[%clk
0:01:11.7]} 18. Ncxd5 {[%clk 0:01:09.9]} 18... Qd7 {[%clk 0:01:02.4]} 19. Be3
{[%clk 0:00:57.5]} 19... Nf3+ {[%clk 0:01:00]} 20. Kf1 {[%clk 0:00:50]} 20...
Rc8 {[%clk 0:00:54.1]} 21. Rc1 {[%clk 0:00:40.7]} 21... a6 {[%clk 0:00:41]} 22.
Qd3 {[%clk 0:00:37.5]} 22... Nce5 {[%clk 0:00:38.4]} 23. Rxc8+ {[%clk
0:00:35.2]} 23... Qxc8 {[%clk 0:00:39.3]} 24. Qa3 {[%clk 0:00:30.7]} 24... Qd7
{[%clk 0:00:34.8]} 25. Ne6 {[%clk 0:00:25.4]} 25... Kf7 {[%clk 0:00:33.2]} 26.
Nef4 {[%clk 0:00:17]} 26... e6 {[%clk 0:00:26.4]} 27. Nc3 {[%clk 0:00:16.8]}
27... g5 {[%clk 0:00:25.3]} 28. Nfe2 {[%clk 0:00:14.3]} 28... Nxg4 {[%clk
0:00:23.7]} 29. Qb4 {[%clk 0:00:11.9]} 29... Nxe3+ {[%clk 0:00:18.8]} 30. fxe3
{[%clk 0:00:12.8]} 30... Kg8 {[%clk 0:00:17.7]} 31. Qc4 {[%clk 0:00:12.4]} 31...
Nd2+ {[%clk 0:00:15.6]} 32. Ke1 {[%clk 0:00:10.2]} 32... Nxc4 {[%clk 0:00:16.2]}
33. b3 {[%clk 0:00:09.8]} 33... Qd2+ {[%clk 0:00:16.7]} 34. Kf2 {[%clk
0:00:09.8]} 34... Qxe3+ {[%clk 0:00:17.1]} 0-1

[Event "Early-Titled-Tuesday-Blitz-September-12-2023"]
[Site "Chess.com"]
[Date "2023.09.12"]
[Round "1"]
[White "Real_taiatai"]
[Black "BahadirOzen"]
[Result "0-1"]
[WhiteElo "2456"]
[BlackElo "2808"]
[TimeControl "180+1"]
[EndTime "8:06:58 PDT"]
[Termination "BahadirOzen won by resignation"]

1. d4 {[%clk 0:03:00.1]} 1... e6 {[%clk 0:03:00]} 2. g3 {[%clk 0:02:57.8]} 2...
Nf6 {[%clk 0:02:49.5]} 3. Bg2 {[%clk 0:02:58]} 3... c5 {[%clk 0:02:47.6]} 4. c3
{[%clk 0:02:54.4]} 4... d5 {[%clk 0:02:46.6]} 5. Nf3 {[%clk 0:02:47.4]} 5...
Nbd7 {[%clk 0:02:44.9]} 6. O-O {[%clk 0:02:45.6]} 6... Be7 {[%clk 0:02:42.4]} 7.
Re1 {[%clk 0:02:40.6]} 7... O-O {[%clk 0:02:42.3]} 8. Bf4 {[%clk 0:02:36.5]}
8... b6 {[%clk 0:02:28.8]} 9. Ne5 {[%clk 0:02:35.4]} 9... Bb7 {[%clk 0:02:25.8]}
10. Nd2 {[%clk 0:02:32.4]} 10... Nh5 {[%clk 0:02:24]} 11. Be3 {[%clk 0:02:20.9]}
11... Nhf6 {[%clk 0:02:16.2]} 12. Bf4 {[%clk 0:02:20.2]} 12... Nxe5 {[%clk
0:02:09.3]} 13. Bxe5 {[%clk 0:02:18.6]} 13... Nd7 {[%clk 0:02:08.7]} 14. Bf4
{[%clk 0:02:17.7]} 14... cxd4 {[%clk 0:02:08.5]} 15. cxd4 {[%clk 0:02:17.7]}
15... Rc8 {[%clk 0:02:07.8]} 16. Nf3 {[%clk 0:02:18]} 16... Bb4 {[%clk
0:02:03.8]} 17. Bd2 {[%clk 0:02:16.6]} 17... Qe7 {[%clk 0:02:04.1]} 18. a3
{[%clk 0:02:16.1]} 18... Bxd2 {[%clk 0:02:00.3]} 19. Qxd2 {[%clk 0:02:16.4]}
19... Rc7 {[%clk 0:01:58.9]} 20. Rac1 {[%clk 0:02:15.4]} 20... Rfc8 {[%clk
0:01:59.5]} 21. Rxc7 {[%clk 0:02:13.8]} 21... Rxc7 {[%clk 0:02:00.4]} 22. Rc1
{[%clk 0:02:14.1]} 22... Qd6 {[%clk 0:01:54.8]} 23. Rc3 {[%clk 0:02:13.5]} 23...
h6 {[%clk 0:01:42.1]} 24. e3 {[%clk 0:02:13.9]} 24... Ba6 {[%clk 0:01:29.8]} 25.
Qc2 {[%clk 0:02:12.9]} 25... Rxc3 {[%clk 0:01:29.4]} 26. Qxc3 {[%clk 0:02:13.1]}
26... Qb8 {[%clk 0:01:12.9]} 27. b4 {[%clk 0:02:11.1]} 27... Qc8 {[%clk
0:01:12.5]} 28. Qxc8+ {[%clk 0:02:08.6]} 28... Bxc8 {[%clk 0:01:13.4]} 29. Bf1
{[%clk 0:02:07.8]} 29... f6 {[%clk 0:01:11.7]} 30. Bb5 {[%clk 0:02:05.2]} 30...
Kf7 {[%clk 0:01:09.8]} 31. Kf1 {[%clk 0:02:04.8]} 31... g5 {[%clk 0:01:09.2]}
32. Ke2 {[%clk 0:02:04.9]} 32... Ke7 {[%clk 0:01:09.8]} 33. Kd3 {[%clk
0:02:04.3]} 33... Kd6 {[%clk 0:01:07.9]} 34. h4 {[%clk 0:02:02.6]} 34... Nf8
{[%clk 0:01:05.2]} 35. hxg5 {[%clk 0:02:02.2]} 35... hxg5 {[%clk 0:01:06.1]} 36.
Nd2 {[%clk 0:02:02.2]} 36... Bb7 {[%clk 0:01:04.1]} 37. f3 {[%clk 0:01:57.7]}
37... a6 {[%clk 0:00:57.1]} 38. Ba4 {[%clk 0:01:57.1]} 38... Ng6 {[%clk
0:00:57]} 39. Be8 {[%clk 0:01:55.9]} 39... Ne7 {[%clk 0:00:56.3]} 40. f4 {[%clk
0:01:51.5]} 40... gxf4 {[%clk 0:00:48.7]} 41. exf4 {[%clk 0:01:50.1]} 41... e5
{[%clk 0:00:37.2]} 42. fxe5+ {[%clk 0:01:48.3]} 42... fxe5 {[%clk 0:00:38.1]}
43. dxe5+ {[%clk 0:01:48]} 43... Kxe5 {[%clk 0:00:39]} 44. Nf3+ {[%clk
0:01:47.9]} 44... Kf6 {[%clk 0:00:38]} 45. Nd4 {[%clk 0:01:44.5]} 45... Bc8
{[%clk 0:00:33.9]} 46. a4 {[%clk 0:01:40.2]} 46... Ke5 {[%clk 0:00:34]} 47. a5
{[%clk 0:01:39.3]} 47... bxa5 {[%clk 0:00:34.9]} 48. bxa5 {[%clk 0:01:39.6]}
48... Bh3 {[%clk 0:00:33.7]} 49. Nc6+ {[%clk 0:01:26.8]} 49... Nxc6 {[%clk
0:00:30]} 50. Bxc6 {[%clk 0:01:27.7]} 50... Bf1+ {[%clk 0:00:30.4]} 51. Ke3
{[%clk 0:01:26.1]} 51... d4+ {[%clk 0:00:30.7]} 52. Kf2 {[%clk 0:01:23.9]} 52...
Bc4 {[%clk 0:00:30.6]} 53. g4 {[%clk 0:01:19.8]} 53... Kf4 {[%clk 0:00:30.7]}
54. Bd7 {[%clk 0:01:19.1]} 54... d3 {[%clk 0:00:29]} 55. Bc8 {[%clk 0:01:15.2]}
55... d2 {[%clk 0:00:27.3]} 0-1